[Event "German Bundesliga 2023-24"]
[Site "Germany"]
[Date "2024.02.04"]
[Round "8.7"]
[White "Handke, Florian"]
[Black "Heinemann, Thies"]
[Result "1-0"]
[ECO "E17"]
[WhiteElo "2536"]
[BlackElo "2438"]
[Annotator "RC"]
[PlyCount "91"]
[EventDate "2023.10.20"]
[EventType "team-tourn"]
[EventCountry "GER"]
[SourceTitle "playchess.com"]
[Source "ChessBase"]
[SourceQuality "1"]
[TimeControl "40/6000+30:3000+30"]

1. d4 {[%emt 0:00:02]} Nf6 {[%emt 0:00:11]} 2. c4 {[%emt 0:00:03]} e6 {[%emt 0:00:07]} 3. Nf3 {[%emt 0:00:11]} b6 {[%emt 0:01:44]} 4. g3 {[%emt 0:00:08]} Bb7 {[%emt 0:03:37]} 5. Bg2 {[%emt 0:00:07]} Be7 {[%emt 0:01:44]} 6. O-O {[%emt 0:00:08]} O-O {[%emt 0:00:18]} 7. Re1 {[%emt 0:00:26]} Na6 {[%emt 0:05:17]} 8. Nc3 {[%emt 0:04:53]} d5 {[%emt 0:02:53]} 9. cxd5 {[%emt 0:10:31]} exd5 {[%emt 0:01:47]} 10. Bg5 {[%emt 0:04:06]} c5 {[%emt 0:08:52]} 11. Ne5 {[%emt 0:06:08]} Ne4 {[%emt 0:12:30]} 12. Bxe7 {[%emt 0:07:45]} Qxe7 {[%emt 0:00:15]} 13. Rc1 {[%emt 0:06:44]} Rfe8 {[%emt 0:11:11]} 14. e3 {[%emt 0:14:53]} Nc7 {[%emt 0:09:10]} 15. f3 {[%emt 0:18:02]} Nd6 {[%emt 0:17:15]} 16. dxc5 {[%emt 0:02:41]} Qxe5 {[%emt 0:06:27]} 17. f4 {[%emt 0:00:53]} Qe6 {[%emt 0:01:57]} 18. cxd6 {[%emt 0:00:37]} Qxd6 {[%emt 0:00:10]} 19. a3 {[%emt 0:15:45]} Rad8 {[%emt 0:02:53]} 20. Qd4 {[%emt 0:01:04]} Ba8 {[%emt 0:07:53]} 21. Rcd1 {[%emt 0:00:38]} Qf8 {[%emt 0:03:18]} 22. Re2 {[%emt 0:06:09]} h6 {[%emt 0:01:56]} 23. Qa4 {[%emt 0:01:34]} a6 {[%emt 0:02:59]} 24. Qd4 {[%emt 0:02:15]} b5 {[%emt 0:02:55]} 25. Kf2 {[%emt 0:02:22]} Qe7 {[%emt 0:01:30]} 26. Qb4 {[%emt 0:01:27]} Qe6 {[%emt 0:00:40]} 27. Qc5 {[%emt 0:00:15]} Rd7 {[%emt 0:00:48]} 28. Qd4 {[%emt 0:00:53]} Qe7 {[%emt 0:01:11]} 29. Red2 {[%emt 0:01:03]} Ne6 {[%emt 0:01:10]} 30. Qe5 {[%emt 0:02:44]} f6 {[%emt 0:00:42]} 31. Qh5 {[%emt 0:00:31]} d4 {[%emt 0:00:36]} 32. exd4 {[%emt 0:00:20]} Nxd4 {[%emt 0:01:39]} 33. Nd5 {[%emt 0:00:19]} Bxd5 {[%emt 0:00:50]} 34. Bxd5+ {[%emt 0:00:09]} Rxd5 {[%emt 0:00:31]} 35. Qxd5+ {[%emt 0:00:04]} Ne6 {[%emt 0:00:14]} 36. f5 {[%emt 0:00:12]} Qc5+ {[%emt 0:00:34]} 37. Qxc5 {[%emt 0:00:50]} Nxc5 {[%emt 0:00:01]} 38. Rd8 {[%emt 0:00:18]} Kf7 {[%emt 0:00:15]} 39. Rxe8 {[%emt 0:00:11]} Kxe8 {[%emt 0:00:01]} 40. b4 {[%emt 0:01:16]} Nb7 {[%emt 0:00:26]} 41. g4 {[%emt 0:51:23]} Ke7 {[%emt 0:50:08]} 42. Re1+ {[%emt 0:00:40]} Kd7 {[%emt 0:00:06]} 43. Re6 {[%emt 0:00:19]} Nd6 {[%emt 0:00:07]} 44. Kg3 {[%emt 0:00:00]} h5 {[%emt 0:00:00]} 45. h3 {[%emt 0:00:00]} hxg4 {[%emt 0:00:00]} 46. Kxg4 {[%emt 0:00:00]} 1-0

[Event "German Bundesliga 2023-24"]
[Site "Germany"]
[Date "2024.02.04"]
[Round "8.7"]
[White "Kovacevic, Aleksandar"]
[Black "Winterberg, Lukas"]
[Result "1-0"]
[ECO "C11"]
[WhiteElo "2445"]
[BlackElo "2410"]
[Annotator "RC"]
[PlyCount "91"]
[EventDate "2023.10.20"]
[EventType "team-tourn"]
[EventCountry "GER"]
[SourceTitle "playchess.com"]
[Source "ChessBase"]
[SourceQuality "1"]
[TimeControl "40/6000+30:3000+30"]

1. e4 {[%emt 0:00:17]} e6 {[%emt 0:00:13]} 2. d4 {[%emt 0:00:10]} d5 {[%emt 0:00:07]} 3. Nc3 {[%emt 0:00:27]} Nf6 {[%emt 0:00:16]} 4. e5 {[%emt 0:00:16]} Nfd7 {[%emt 0:00:13]} 5. f4 {[%emt 0:00:10]} c5 {[%emt 0:00:16]} 6. Nf3 {[%emt 0:00:08]} Nc6 {[%emt 0:00:13]} 7. Be3 {[%emt 0:00:13]} a6 {[%emt 0:00:14]} 8. Ne2 {[%emt 0:00:51]} b5 {[%emt 0:04:44]} 9. c3 {[%emt 0:00:31]} b4 {[%emt 0:03:25]} 10. cxb4 {[%emt 0:00:47]} cxd4 {[%emt 0:00:47]} 11. Nexd4 {[%emt 0:00:22]} Bxb4+ {[%emt 0:00:37]} 12. Kf2 {[%emt 0:00:10]} Nxd4 {[%emt 0:07:27]} 13. Nxd4 {[%emt 0:01:58]} Bc5 {[%emt 0:02:11]} 14. Qd2 {[%emt 0:06:28]} O-O {[%emt 0:01:07]} 15. Rc1 {[%emt 0:09:42]} a5 {[%emt 0:09:33]} 16. Bb5 {[%emt 0:06:53]} Bb7 {[%emt 0:27:31]} 17. Rc2 {[%emt 0:07:22]} Bxd4 {[%emt 0:15:09]} 18. Bxd4 {[%emt 0:01:20]} f6 {[%emt 0:00:13]} 19. Bxd7 {[%emt 0:06:25]} Qxd7 {[%emt 0:00:19]} 20. Rhc1 {[%emt 0:00:17]} f5 {[%emt 0:19:10]} 21. Rc7 {[%emt 0:02:10]} Qb5 {[%emt 0:00:03]} 22. a4 {[%emt 0:00:41]} Qa6 {[%emt 0:00:08]} 23. b4 {[%emt 0:02:43]} Rac8 {[%emt 0:03:15]} 24. b5 {[%emt 0:01:14]} Qa8 {[%emt 0:00:02]} 25. R1c5 {[%emt 0:18:19]} Rxc7 {[%emt 0:00:39]} 26. Rxc7 {[%emt 0:00:04]} Rf7 {[%emt 0:00:55]} 27. Qc3 {[%emt 0:16:55]} Qd8 {[%emt 0:00:23]} 28. Bb6 {[%emt 0:09:46]} Qh4+ {[%emt 0:03:33]} 29. Qg3 {[%emt 0:00:19]} Qh5 {[%emt 0:01:00]} 30. Qg5 {[%emt 0:11:10]} Qxh2 {[%emt 0:02:45]} 31. Rxf7 {[%emt 0:01:56]} Kxf7 {[%emt 0:00:12]} 32. Bc5 {[%emt 0:02:31]} Bc8 {[%emt 0:02:21]} 33. Qe7+ {[%emt 0:00:28]} Kg6 {[%emt 0:00:10]} 34. Qg5+ {[%emt 0:00:02]} Kf7 {[%emt 0:00:09]} 35. Qe7+ {[%emt 0:01:19]} Kg6 {[%emt 0:00:02]} 36. Be3 {[%emt 0:00:11]} d4 {[%emt 0:04:10]} 37. Bd2 {[%emt 0:00:01]} Qh5 {[%emt 0:02:27]} 38. Qe8+ {[%emt 0:00:15]} Kh6 {[%emt 0:00:09]} 39. Qxc8 {[%emt 0:00:15]} d3 {[%emt 0:00:12]} 40. Qc1 {[%emt 0:01:11]} Qe2+ {[%emt 0:01:33]} 41. Kg1 {[%emt 0:50:17]} Qe4 {[%emt 0:50:14]} 42. Qe1 {[%emt 0:04:20]} Qxa4 {[%emt 0:00:24]} 43. Qh4+ {[%emt 0:00:00]} Kg6 {[%emt 0:00:00]} 44. Qg3+ {[%emt 0:00:00]} Kf7 {[%emt 0:00:00]} 45. Qxd3 {[%emt 0:00:00]} Qd1+ {[%emt 0:00:00]} 46. Kf2 {[%emt 0:00:00]} 1-0

[Event "German Bundesliga 2023-24"]
[Site "Germany"]
[Date "2024.02.04"]
[Round "8.7"]
[White "Hoffmann, Paul"]
[Black "Grigoriants, Sergey"]
[Result "1/2-1/2"]
[ECO "C24"]
[WhiteElo "2378"]
[BlackElo "2543"]
[Annotator "ChessBase"]
[PlyCount "70"]
[EventDate "2023.10.20"]
[EventType "team-tourn"]
[EventCountry "GER"]
[SourceTitle "playchess.com"]
[Source "ChessBase"]
[SourceQuality "1"]
[TimeControl "40/6000+30:3000+30"]

1. e4 {[%emt 0:05:02]} e5 {[%emt 0:01:24]} 2. Bc4 {[%emt 0:00:10]} Nf6 {[%emt 0:00:57]} 3. d3 {[%emt 0:00:05]} c6 {[%emt 0:02:00]} 4. Nf3 {[%emt 0:00:19]} d5 {[%emt 0:00:32]} 5. Bb3 {[%emt 0:00:07]} Bb4+ {[%emt 0:00:43]} 6. Bd2 {[%emt 0:03:57]} Bxd2+ {[%emt 0:00:53]} 7. Nbxd2 {[%emt 0:01:02]} a5 {[%emt 0:01:23]} 8. c3 {[%emt 0:03:55]} Bg4 {[%emt 0:06:11]} 9. h3 {[%emt 0:05:35]} Bxf3 {[%emt 0:02:44]} 10. Qxf3 {[%emt 0:00:49]} O-O {[%emt 0:10:39]} 11. O-O {[%emt 0:17:33]} a4 {[%emt 0:13:15]} 12. Bc2 {[%emt 0:05:52]} Re8 {[%emt 0:04:17]} 13. Qd1 {[%emt 0:05:06]} b5 {[%emt 0:05:04]} 14. f4 {[%emt 0:12:29]} exf4 {[%emt 0:14:56]} 15. Rxf4 {[%emt 0:02:53]} dxe4 {[%emt 0:00:48]} 16. Nxe4 {[%emt 0:03:22]} Nxe4 {[%emt 0:01:31]} 17. Rxe4 {[%emt 0:00:44]} Rxe4 {[%emt 0:03:20]} 18. dxe4 {[%emt 0:00:43]} Qe7 {[%emt 0:00:20]} 19. e5 {[%emt 0:01:24]} Nd7 {[%emt 0:08:05]} 20. Qd6 {[%emt 0:05:17]} Qxd6 {[%emt 0:01:16]} 21. exd6 {[%emt 0:01:21]} Ne5 {[%emt 0:00:14]} 22. b3 {[%emt 0:03:10]} axb3 {[%emt 0:04:26]} 23. Bxb3 {[%emt 0:00:21]} Kf8 {[%emt 0:00:08]} 24. Re1 {[%emt 0:07:03]} f6 {[%emt 0:00:51]} 25. Rd1 {[%emt 0:01:01]} Rd8 {[%emt 0:03:02]} 26. a4 {[%emt 0:03:01]} bxa4 {[%emt 0:04:18]} 27. Bxa4 {[%emt 0:00:34]} Ke8 {[%emt 0:00:52]} 28. c4 {[%emt 0:04:52]} Nxc4 {[%emt 0:15:17]} 29. Bxc6+ {[%emt 0:00:22]} Kf8 {[%emt 0:00:04]} 30. d7 {[%emt 0:03:00]} Ne5 {[%emt 0:00:11]} 31. Ba4 {[%emt 0:00:19]} Ke7 {[%emt 0:00:09]} 32. Re1 {[%emt 0:03:59]} Kf8 {[%emt 0:01:45]} 33. Rd1 {[%emt 0:00:23]} Ke7 {[%emt 0:00:44]} 34. Re1 {[%emt 0:00:08]} Kd6 {[%emt 0:02:03]} 35. Rd1+ {[%emt 0:00:23]} Ke7 {[%emt 0:00:34]} 1/2-1/2

[Event "German Bundesliga 2023-24"]
[Site "Germany"]
[Date "2024.02.04"]
[Round "8.8"]
[White "Georgiev, Kiril"]
[Black "Loxine, Jakov"]
[Result "1-0"]
[ECO "E97"]
[WhiteElo "2548"]
[BlackElo "2397"]
[Annotator "ChessBase"]
[PlyCount "73"]
[EventDate "2023.10.20"]
[EventType "team-tourn"]
[EventCountry "GER"]
[SourceTitle "playchess.com"]
[Source "ChessBase"]
[SourceQuality "1"]
[TimeControl "40/6000+30:3000+30"]

1. c4 {[%emt 0:00:18]} g6 {[%emt 0:00:08]} 2. d4 {[%emt 0:00:34]} Bg7 {[%emt 0:00:06]} 3. Nc3 {[%emt 0:00:08]} Nf6 {[%emt 0:00:06]} 4. e4 {[%emt 0:03:45]} d6 {[%emt 0:00:06]} 5. Nf3 {[%emt 0:00:53]} O-O {[%emt 0:00:07]} 6. Be2 {[%emt 0:01:37]} e5 {[%emt 0:00:17]} 7. O-O {[%emt 0:00:30]} Nc6 {[%emt 0:00:13]} 8. d5 {[%emt 0:01:00]} Ne7 {[%emt 0:00:06]} 9. Nd2 {[%emt 0:00:58]} a5 {[%emt 0:04:43]} 10. a3 {[%emt 0:00:09]} Nd7 {[%emt 0:00:10]} 11. Rb1 {[%emt 0:00:14]} f5 {[%emt 0:00:07]} 12. b4 {[%emt 0:00:09]} axb4 {[%emt 0:00:32]} 13. axb4 {[%emt 0:00:11]} Kh8 {[%emt 0:00:31]} 14. Qc2 {[%emt 0:01:20]} Nf6 {[%emt 0:08:03]} 15. Bb2 {[%emt 0:09:43]} c6 {[%emt 0:15:07]} 16. Rbd1 {[%emt 0:16:02]} Bd7 {[%emt 0:16:30]} 17. c5 {[%emt 0:05:05]} cxd5 {[%emt 0:02:45]} 18. cxd6 {[%emt 0:01:51]} fxe4 {[%emt 0:08:01]} 19. dxe7 {[%emt 0:04:58]} Qxe7 {[%emt 0:00:05]} 20. Qb3 {[%emt 0:03:15]} d4 {[%emt 0:05:09]} 21. Ncxe4 {[%emt 0:02:02]} Ba4 {[%emt 0:01:23]} 22. Qd3 {[%emt 0:10:17]} Nd5 {[%emt 0:17:58]} 23. Ra1 {[%emt 0:05:40]} Nf4 {[%emt 0:01:11]} 24. Qf3 {[%emt 0:00:34]} Bc2 {[%emt 0:01:45]} 25. Rxa8 {[%emt 0:06:23]} Rxa8 {[%emt 0:00:03]} 26. Nc5 {[%emt 0:01:09]} Rf8 {[%emt 0:01:41]} 27. Bd1 {[%emt 0:10:01]} Bxd1 {[%emt 0:14:09]} 28. Rxd1 {[%emt 0:03:45]} b6 {[%emt 0:00:24]} 29. Nd3 {[%emt 0:01:24]} Nxd3 {[%emt 0:01:12]} 30. Qxd3 {[%emt 0:00:12]} Qxb4 {[%emt 0:00:05]} 31. Ba3 {[%emt 0:02:55]} Qa4 {[%emt 0:00:03]} 32. Ne4 {[%emt 0:01:59]} Ra8 {[%emt 0:02:12]} 33. Bd6 {[%emt 0:02:00]} Qc6 {[%emt 0:01:23]} 34. h4 {[%emt 0:00:44]} b5 {[%emt 0:00:54]} 35. h5 {[%emt 0:00:36]} Qc4 {[%emt 0:01:14]} 36. h6 {[%emt 0:00:52]} Ra1 {[%emt 0:00:51]} 37. Rxa1 {[%emt 0:01:00]} 1-0

[Event "German Bundesliga 2023-24"]
[Site "Germany"]
[Date "2024.02.04"]
[Round "8.8"]
[White "Sebastian, Dirk"]
[Black "Naumann, Alexander"]
[Result "1/2-1/2"]
[ECO "C55"]
[WhiteElo "2432"]
[BlackElo "2498"]
[Annotator "ChessBase"]
[PlyCount "41"]
[EventDate "2023.10.20"]
[EventType "team-tourn"]
[EventCountry "GER"]
[SourceTitle "playchess.com"]
[Source "ChessBase"]
[SourceQuality "1"]
[TimeControl "40/6000+30:3000+30"]

1. e4 {[%emt 0:00:03]} e5 {[%emt 0:00:07]} 2. Nf3 {[%emt 0:00:34]} Nc6 {[%emt 0:00:08]} 3. Bc4 {[%emt 0:00:41]} Nf6 {[%emt 0:00:17]} 4. d3 {[%emt 0:00:57]} Be7 {[%emt 0:00:21]} 5. O-O {[%emt 0:02:52]} O-O {[%emt 0:00:11]} 6. Nc3 {[%emt 0:02:37]} d6 {[%emt 0:01:06]} 7. a4 {[%emt 0:00:59]} a5 {[%emt 0:09:45]} 8. Re1 {[%emt 0:05:22]} Be6 {[%emt 0:00:16]} 9. Nd5 {[%emt 0:04:51]} Nb4 {[%emt 0:01:23]} 10. d4 {[%emt 0:19:31]} Nbxd5 {[%emt 0:12:34]} 11. exd5 {[%emt 0:00:53]} Nxd5 {[%emt 0:02:27]} 12. dxe5 {[%emt 0:13:42]} Ne3 {[%emt 0:01:26]} 13. Bxe3 {[%emt 0:00:10]} Bxc4 {[%emt 0:00:05]} 14. Bf4 {[%emt 0:04:57]} Ra6 {[%emt 0:11:58]} 15. Nd4 {[%emt 0:19:26]} dxe5 {[%emt 0:18:22]} 16. Bxe5 {[%emt 0:02:59]} Bf6 {[%emt 0:00:08]} 17. Nb5 {[%emt 0:06:25]} Bxe5 {[%emt 0:04:04]} 18. Rxe5 {[%emt 0:02:42]} Bxb5 {[%emt 0:08:55]} 19. Qxd8 {[%emt 0:01:56]} Rxd8 {[%emt 0:00:08]} 20. axb5 {[%emt 0:02:21]} Rad6 {[%emt 0:03:46]} 21. Kf1 {[%emt 0:02:16]} 1/2-1/2

[Event "German Bundesliga 2023-24"]
[Site "Germany"]
[Date "2024.02.04"]
[Round "8.8"]
[White "Zeller, Frank"]
[Black "Graf, Alexander"]
[Result "1-0"]
[ECO "C92"]
[WhiteElo "2335"]
[BlackElo "2523"]
[Annotator "ChessBase"]
[PlyCount "81"]
[EventDate "2023.10.20"]
[EventType "team-tourn"]
[EventCountry "GER"]
[SourceTitle "playchess.com"]
[Source "ChessBase"]
[SourceQuality "1"]
[TimeControl "40/6000+30:3000+30"]

1. e4 {[%emt 0:00:08]} e5 {[%emt 0:00:09]} 2. Nf3 {[%emt 0:00:18]} Nc6 {[%emt 0:00:08]} 3. Bb5 {[%emt 0:00:46]} a6 {[%emt 0:00:09]} 4. Ba4 {[%emt 0:00:12]} Nf6 {[%emt 0:00:09]} 5. O-O {[%emt 0:00:19]} Be7 {[%emt 0:00:06]} 6. Re1 {[%emt 0:00:30]} b5 {[%emt 0:00:09]} 7. Bb3 {[%emt 0:00:05]} d6 {[%emt 0:00:07]} 8. c3 {[%emt 0:00:37]} O-O {[%emt 0:00:10]} 9. h3 {[%emt 0:00:37]} Bb7 {[%emt 0:01:01]} 10. d4 {[%emt 0:01:44]} Re8 {[%emt 0:00:09]} 11. Ng5 {[%emt 0:01:36]} Rf8 {[%emt 0:00:13]} 12. Nf3 {[%emt 0:00:12]} Re8 {[%emt 0:00:09]} 13. Nbd2 {[%emt 0:09:50]} exd4 {[%emt 0:00:47]} 14. cxd4 {[%emt 0:00:27]} Nd7 {[%emt 0:00:09]} 15. Nf1 {[%emt 0:01:52]} Na5 {[%emt 0:00:24]} 16. Bc2 {[%emt 0:00:14]} Bf6 {[%emt 0:00:08]} 17. N1h2 {[%emt 0:13:08]} c5 {[%emt 0:07:30]} 18. d5 {[%emt 0:02:31]} Nc4 {[%emt 0:00:50]} 19. Rb1 {[%emt 0:02:30]} Nde5 {[%emt 0:08:08]} 20. Nxe5 {[%emt 0:12:28]} Nxe5 {[%emt 0:09:33]} 21. f4 {[%emt 0:01:24]} Ng6 {[%emt 0:07:09]} 22. Be3 {[%emt 0:11:40]} Bc8 {[%emt 0:10:08]} 23. Qh5 {[%emt 0:07:32]} Bd7 {[%emt 0:04:19]} 24. Ng4 {[%emt 0:10:05]} Bxg4 {[%emt 0:06:44]} 25. hxg4 {[%emt 0:04:11]} Qa5 {[%emt 0:02:38]} 26. Rf1 {[%emt 0:15:34]} Bxb2 {[%emt 0:01:29]} 27. Rxb2 {[%emt 0:04:17]} Qc3 {[%emt 0:00:06]} 28. Bc1 {[%emt 0:00:10]} Qd4+ {[%emt 0:00:39]} 29. Kh2 {[%emt 0:01:41]} c4 {[%emt 0:00:13]} 30. Qh3 {[%emt 0:02:40]} c3 {[%emt 0:01:26]} 31. Rb3 {[%emt 0:02:28]} b4 {[%emt 0:00:09]} 32. Qe3 {[%emt 0:02:12]} Qc5 {[%emt 0:00:09]} 33. Qxc5 {[%emt 0:01:01]} dxc5 {[%emt 0:00:01]} 34. Be3 {[%emt 0:00:10]} Rec8 {[%emt 0:01:40]} 35. Rbb1 {[%emt 0:00:44]} a5 {[%emt 0:00:17]} 36. Ba4 {[%emt 0:00:05]} Ra7 {[%emt 0:00:50]} 37. d6 {[%emt 0:00:10]} Nf8 {[%emt 0:00:45]} 38. Rbd1 {[%emt 0:00:27]} Nd7 {[%emt 0:01:12]} 39. Rd5 {[%emt 0:01:49]} Nf6 {[%emt 0:00:21]} 40. Rxc5 {[%emt 0:01:21]} Rca8 {[%emt 0:00:32]} 41. Kh3 {[%emt 0:04:08]} 1-0

[Event "German Bundesliga 2023-24"]
[Site "Germany"]
[Date "2024.02.04"]
[Round "8.8"]
[White "Ronge, Tim"]
[Black "Zelcic, Robert"]
[Result "1/2-1/2"]
[ECO "B03"]
[WhiteElo "2301"]
[BlackElo "2476"]
[Annotator "RC"]
[PlyCount "136"]
[EventDate "2023.10.20"]
[EventType "team-tourn"]
[EventCountry "GER"]
[SourceTitle "playchess.com"]
[Source "ChessBase"]
[SourceQuality "1"]
[TimeControl "40/6000+30:3000+30"]

1. e4 {[%emt 0:00:03]} Nf6 {[%emt 0:00:18]} 2. e5 {[%emt 0:00:07]} Nd5 {[%emt 0:00:04]} 3. d4 {[%emt 0:00:04]} d6 {[%emt 0:00:05]} 4. c4 {[%emt 0:00:04]} Nb6 {[%emt 0:00:02]} 5. exd6 {[%emt 0:00:06]} exd6 {[%emt 0:00:03]} 6. Nc3 {[%emt 0:00:19]} Be7 {[%emt 0:00:01]} 7. h3 {[%emt 0:01:17]} O-O {[%emt 0:00:47]} 8. Nf3 {[%emt 0:00:04]} Bf6 {[%emt 0:00:10]} 9. Be2 {[%emt 0:00:05]} Be6 {[%emt 0:00:02]} 10. b3 {[%emt 0:01:24]} d5 {[%emt 0:03:51]} 11. c5 {[%emt 0:04:37]} N6d7 {[%emt 0:00:01]} 12. Bb2 {[%emt 0:03:38]} b6 {[%emt 0:00:54]} 13. b4 {[%emt 0:00:53]} Re8 {[%emt 0:03:28]} 14. O-O {[%emt 0:00:58]} a5 {[%emt 0:00:03]} 15. a3 {[%emt 0:02:03]} axb4 {[%emt 0:00:05]} 16. axb4 {[%emt 0:00:07]} Rxa1 {[%emt 0:00:03]} 17. Bxa1 {[%emt 0:01:13]} Nc6 {[%emt 0:02:42]} 18. Bb5 {[%emt 0:13:29]} Qa8 {[%emt 0:00:11]} 19. Bxc6 {[%emt 0:19:04]} Qxc6 {[%emt 0:00:05]} 20. b5 {[%emt 0:00:07]} Qa8 {[%emt 0:00:10]} 21. c6 {[%emt 0:00:17]} Nf8 {[%emt 0:00:07]} 22. Qb3 {[%emt 0:00:37]} Qd8 {[%emt 0:04:46]} 23. Bb2 {[%emt 0:00:21]} Ng6 {[%emt 0:00:32]} 24. Re1 {[%emt 0:05:42]} Ne7 {[%emt 0:00:26]} 25. Ne2 {[%emt 0:03:58]} Ng6 {[%emt 0:03:01]} 26. Nc3 {[%emt 0:01:57]} Nf4 {[%emt 0:19:03]} 27. Bc1 {[%emt 0:07:03]} Nd3 {[%emt 0:03:27]} 28. Rd1 {[%emt 0:00:04]} Nxc1 {[%emt 0:00:05]} 29. Rxc1 {[%emt 0:00:02]} Be7 {[%emt 0:04:05]} 30. Re1 {[%emt 0:03:48]} h6 {[%emt 0:00:11]} 31. Ne5 {[%emt 0:04:09]} Qd6 {[%emt 0:03:09]} 32. Ra1 {[%emt 0:07:14]} Qb4 {[%emt 0:03:50]} 33. Qxb4 {[%emt 0:00:37]} Bxb4 {[%emt 0:00:02]} 34. Nd1 {[%emt 0:02:17]} Bd6 {[%emt 0:02:26]} 35. Ra7 {[%emt 0:07:16]} f6 {[%emt 0:11:51]} 36. Nf3 {[%emt 0:00:04]} g5 {[%emt 0:06:51]} 37. g4 {[%emt 0:05:53]} h5 {[%emt 0:07:36]} 38. Ne3 {[%emt 0:00:15]} hxg4 {[%emt 0:00:06]} 39. hxg4 {[%emt 0:00:17]} Kf7 {[%emt 0:00:59]} 40. Nd2 {[%emt 0:03:54]} Kg6 {[%emt 0:03:06]} 41. Nb1 {[%emt 0:54:43]} Bxg4 {[%emt 1:08:24]} 42. Kg2 {[%emt 0:01:23]} Bf5 {[%emt 0:00:34]} 43. Nc3 {[%emt 0:00:49]} Bd3 {[%emt 0:04:04]} 44. Nexd5 {[%emt 0:02:02]} Re1 {[%emt 0:00:45]} 45. f3 {[%emt 0:03:18]} Rc1 {[%emt 0:00:36]} 46. Ne4 {[%emt 0:03:48]} Rc2+ {[%emt 0:03:58]} 47. Kh1 {[%emt 0:00:30]} Rc1+ {[%emt 0:03:51]} 48. Kg2 {[%emt 0:01:50]} Rc2+ {[%emt 0:00:02]} 49. Kh1 {[%emt 0:00:05]} Be2 {[%emt 0:00:00]} 50. Nxd6 {[%emt 0:00:00]} Bxf3+ {[%emt 0:00:00]} 51. Kg1 {[%emt 0:00:00]} Bxd5 {[%emt 0:00:00]} 52. Rxc7 {[%emt 0:00:00]} g4 {[%emt 0:00:00]} 53. Ne8 {[%emt 0:00:00]} Kf5 {[%emt 0:00:00]} 54. Rg7 {[%emt 0:00:00]} Kf4 {[%emt 0:00:00]} 55. Nxf6 {[%emt 0:00:00]} Bf3 {[%emt 0:00:00]} 56. Nh5+ {[%emt 0:00:00]} Ke3 {[%emt 0:00:00]} 57. Re7+ {[%emt 0:00:00]} Kxd4 {[%emt 0:00:00]} 58. c7 {[%emt 0:00:00]} Bb7 {[%emt 0:00:00]} 59. Nf4 {[%emt 0:00:00]} g3 {[%emt 0:00:00]} 60. Ne2+ {[%emt 0:00:00]} Kd3 {[%emt 0:02:50]} 61. Nf4+ {[%emt 0:00:00]} Kd4 {[%emt 0:03:27]} 62. Ne2+ {[%emt 0:00:00]} Kc4 {[%emt 0:01:27]} 63. c8=Q+ {[%emt 0:00:00]} Bxc8 {[%emt 0:00:07]} 64. Rc7+ {[%emt 0:00:00]} Kd3 {[%emt 0:00:00]} 65. Nf4+ {[%emt 0:00:00]} Kd2 {[%emt 0:00:07]} 66. Rxc2+ {[%emt 0:00:00]} Kxc2 {[%emt 0:00:05]} 67. Nd5 {[%emt 0:00:00]} Bd7 {[%emt 0:00:08]} 68. Nxb6 {[%emt 0:00:00]} Bxb5 {[%emt 0:00:59]} 1/2-1/2